Cogmind - Beta 13 @@@ ROGUE MODE // 2024.05.22 @ 22:03:12 Player: Ronin_tempest Result: Destroyed by Y-45 Defender with Heavy Assault Rifle Performance ------------- Evolutions (2) 1000 Regions Visited (9) 1800 Robots Destroyed (128) 640 Value Destroyed (4873) 4873 Prototype IDs (3) 60 Alien Tech Used (0) 0 Bonus (1173) 1173 TOTAL SCORE: 9546 Bonus ------- High Alert Combat Kills 441 Follower Combat Kills 32 Entered Garrisons 200 Used RIF Installer 500 Cogmind --------- Core Integrity 0/550 Matter 290/300 Energy 160/160 System Corruption 0% Temperature Cool (9) Movement Rolling (120) Ox2 Location -8/Materials Parts ------- > --- POWER (1) -------- Light Nuclear Core > --- PROPULSION (3) --- Armored Treads Armored Wheel > --- UTILITY (5) ------ Improved Heat Sink Large Storage Unit Advanced Visual Processing Unit Advanced Targeting Computer Improved Light Armor Plating > --- WEAPON (2) ------- Beamcaster Katana > --- INVENTORY (15) --- Wheel Improved Heat Sink Relay Coupler [NC] (31) Relay Coupler [NC] (27) Relay Coupler [Swarmer] (29) Relay Coupler [Grunt] (28) Relay Coupler [Grunt] (21) Relay Coupler [Sentry] (19) Relay Coupler [Sentry] (18) Relay Coupler [Sentry] (17) Relay Coupler [Hunter] (13) Relay Coupler [Hunter] (14) Heavy Laser Bore Cannon Missile Launcher Peak State ------------ > --- POWER ------------ Light Angular Momentum Engine > --- PROPULSION ------- Light Treads Light Treads Light Treads > --- UTILITY ---------- Advanced Heat Sink Large Storage Unit Experimental Sensor Array Signal Interpreter Hardened Light Armor Plating > --- WEAPON ----------- Heavy Particle Cannon Gauss Rifle > --- INVENTORY -------- Improved Ion Engine Light Treads Light Treads Wheel Armored Wheel Hardened Light Armor Plating Improved Light Armor Plating Splice Drone Bay Spread Laser Beamcaster Particle Cannon Heavy Assault Rifle Improved Light Cannon Bore Cannon Missile Launcher [Rating: 37] Favorites ----------- Power Light Angular Momentum Engine Engine Light Angular Momentum Engine Power Core Light Nuclear Core Propulsion Light Treads Treads Light Treads Leg Aluminum Leg Wheel Armored Wheel Utility Large Storage Unit Device Improved Heat Sink Storage Large Storage Unit Processor Signal Interpreter Protection Hardened Light Armor Plating Weapon Assault Rifle Energy Gun Spread Laser Energy Cannon Advanced Beam Cannon Ballistic Gun Assault Rifle Launcher Missile Launcher Slashing Weapon Katana Build | -11 -10 -10 -9 -9 -9 -8 -8 -8 -8 ------- Run | Yrd Mat Min Mat Min Exi Min Mat Gar Mat Slots Evolved 4 | . . . 2 . . . 2 . . Power . | . . . . . . . . . . Propulsion 1 | . . . . . . . 1 . . Utility 3 | . . . 2 . . . 1 . . Weapon . | . . . . . . . . . . Parts Attached 79 | 2 5 5 15 3 . 4 6 18 21 Power 11 | . 1 1 1 1 . . . 2 5 Engine 4 | . 1 . . 1 . . . 2 . Core 7 | . . 1 1 . . . . . 5 Reactor . | . . . . . . . . . . Propulsion 25 | 2 . 1 5 1 . 1 5 5 5 Treads 19 | 2 . 1 5 1 . 1 5 3 1 Leg 1 | . . . . . . . . . 1 Wheel 5 | . . . . . . . . 2 3 Hover . | . . . . . . . . . . Flight . | . . . . . . . . . . Utility 26 | . 3 2 6 1 . 1 1 4 8 Device 6 | . . . 2 . . 1 1 . 2 Storage 1 | . 1 . . . . . . . . Processor 4 | . . 1 1 . . . . 1 1 Hackware . | . . . . . . . . . . Protection 15 | . 2 1 3 1 . . . 3 5 Artifact . | . . . . . . . . . . Weapon 17 | . 1 1 3 . . 2 . 7 3 Energy Gun 2 | . . . . . . . . 1 1 Energy Cannon 5 | . . 1 1 . . 1 . 2 . Ballistic Gun 7 | . 1 . 2 . . 1 . 2 1 Ballistic Cannon . | . . . . . . . . . . Launcher 2 | . . . . . . . . 2 . Special Weapon . | . . . . . . . . . . Impact Weapon . | . . . . . . . . . . Slashing Weapon 1 | . . . . . . . . . 1 Piercing Weapon . | . . . . . . . . . . Special Melee Weapon . | . . . . . . . . . . Unidentified Prototypes 1 | . . . 1 . . . . . . Parts Lost 28 | . . 2 2 . . 1 . 9 14 Power 4 | . . . 1 . . . . 1 2 Propulsion 10 | . . 1 . . . 1 . 4 4 Utility 8 | . . . 1 . . . . 2 5 Weapon 6 | . . 1 . . . . . 2 3 Highest Loss Streak 5 | . . 2 1 . . 1 . 4 5 To Critical Strikes . | . . . . . . . . . . Average Slot Usage (%) 96 | . 95 87 99 100 100 99 100 96 93 Engine 7 | . 14 2 . 10 11 11 9 9 4 Core 3 | . . 11 10 . . . . . 3 Treads 19 | . 28 15 22 22 22 21 27 20 6 Wheel 2 | . . . . . . . . 4 17 Device 7 | . . . 8 11 11 11 18 12 6 Storage 11 | . 14 14 11 11 11 11 9 9 9 Processor 9 | . . 2 13 11 11 11 9 11 18 Protection 10 | . 10 11 10 11 11 11 9 10 9 Energy Gun 1 | . . . . . . . . 3 10 Energy Cannon 7 | . . 12 11 11 11 11 9 5 . Ballistic Gun 12 | . 27 15 11 11 11 11 9 9 5 Naked Turns . | . . . . . . . . . . Heaviest Build 49 | 12 32 34 40 44 42 45 46 49 42 Greatest Support 60 | 40 40 40 40 40 40 40 60 60 38 Greatest Overweight (x) 3 | . . 1 . 1 1 1 . 3 3 Average Overweight (x) . | . . . . . 1 . . . 1 Largest Inventory Capacity 15 | 8 15 15 15 15 15 15 15 15 15 Average Capacity 14 | 8 14 15 15 15 15 15 15 15 15 Most Carried 15 | 6 14 15 15 15 15 15 15 15 15 Average Carried 13 | 6 10 14 14 14 15 14 14 13 14 Final Capacity 15 | 8 15 15 15 15 15 15 15 15 15 Final Carried 15 | 6 14 14 14 15 15 15 13 15 15 Class Distribution -------------------- 69% | Scavenger-Mutant 29% | Mutant Dominant Class ---------------- Mutant | -10/Materials Mutant | -10/Mines Scavenger-Mutant | -9/Materials Scavenger-Mutant | -9/Mines Scavenger-Mutant | -9/Exiles Scavenger-Mutant | -8/Mines Scavenger-Mutant | -8/Materials Scavenger-Mutant | -8/Garrison Scavenger-Mutant | -8/Materials Resources | -11 -10 -10 -9 -9 -9 -8 -8 -8 -8 ----------- Run | Yrd Mat Min Mat Min Exi Min Mat Gar Mat Matter Collected 2196 | 226 276 97 362 78 . 122 94 450 491 Remotely . | . . . . . . . . . . Salvage Created 5125 | 22 511 169 1250 179 . 459 193 860 1482 Parts 295 | . 31 9 77 15 . 30 12 53 68 Haulers Intercepted 4 | . . . 4 . . . . . . Recyclers Shooed . | . . . . . . . . . . Parts Field Recycled . | . . . . . . . . . . Retrieved Matter . | . . . . . . . . . . Parts Self-Destructed . | . . . . . . . . . . Prevented . | . . . . . . . . . . Kills | -11 -10 -10 -9 -9 -9 -8 -8 -8 -8 ------- Run | Yrd Mat Min Mat Min Exi Min Mat Gar Mat Combat Hostiles Destroyed 107 | . 11 4 24 7 . 11 3 22 25 Melee 5 | . . . . . . . . . 5 Guns 62 | . 11 2 9 2 . 7 . 12 19 Cannons 36 | . . 2 15 5 . 4 3 7 . AOE 2 | . . . . . . . . 2 . Classes Destroyed 14 | 1 2 . 5 1 . 2 . 1 2 Worker 3 | . . . . . . 1 . . 2 Tunneler 1 | 1 . . . . . . . . . Hauler 4 | . . . 4 . . . . . . Recycler 5 | . . . 1 . . 1 . . 3 Mechanic 2 | . . . 1 . . . . . 1 Watcher 7 | . 2 . 2 . . . 1 . 2 Swarmer 21 | . . . 7 3 . 6 . 5 . Grunt 53 | . 11 4 10 2 . 3 . 5 18 Brawler 1 | . . . . . . . . . 1 Duelist 2 | . . . . . . . . . 2 Sentry 23 | . . . 7 1 . . 3 9 3 Specialist 2 | . . . . . . . . 2 . Hunter 4 | . . . . . . 2 . 1 1 Assembled 1 | . . . . 1 . . . . . Best Kill Streak 10 | 1 5 2 5 3 . 4 1 4 10 Combat Bots Only 7 | . 4 2 5 3 . 4 1 4 7 Max Kills in Single Turn 2 | 1 1 1 2 1 . 2 1 2 2 Gunslinging 1 | . . . . . . . . . 1 Exploded 2 | . . . . . . . . 2 . Melee 1 | . . . . . . . . . 1 Uniques/NPCs Destroyed . | . . . . . . . . . . Combat | -11 -10 -10 -9 -9 -9 -8 -8 -8 -8 -------- Run | Yrd Mat Min Mat Min Exi Min Mat Gar Mat Hostile Shots Fired 573 | . 46 13 92 28 . 72 10 150 162 Missed 131 | . 9 1 22 10 . 23 1 29 36 Damage Taken 6217 | . 442 148 829 256 . 592 131 1712 2107 Core 926 | . 63 23 111 44 . 128 . 207 350 Absorbed by Shields . | . . . . . . . . . . Regen/Repaired (Parts) 132 | . 132 . . . . . . . . Core Remaining (%) 64 | 100 . 65 . . . 29 . . . Volleys Fired 349 | 1 42 9 69 16 . 30 6 80 96 Largest 2 | 2 2 2 2 2 . 2 2 2 2 Hottest 140 | 40 40 88 91 91 . 96 103 103 140 Shots Fired 652 | 2 84 18 138 32 . 60 12 140 166 Gun 479 | 2 84 14 69 16 . 30 6 92 166 Cannon 170 | . . 4 69 16 . 30 6 45 . Launcher 3 | . . . . . . . . 3 . Special . | . . . . . . . . . . Kinetic 374 | 2 84 14 69 16 . 30 6 68 85 Thermal 275 | . . 4 69 16 . 30 6 69 81 Explosive 3 | . . . . . . . . 3 . Electromagnetic . | . . . . . . . . . . Robot Hit Streak 20 | 2 14 8 15 6 . 9 4 20 14 Robot Miss Streak 13 | . 7 1 3 4 . 3 1 13 5 Penetration Max 1 | . . . . . . . . 1 1 Secondary Targets 8 | . 3 1 . . . . . 2 2 Max Gunslinging Chain 1 | . 1 1 . . . . . 1 1 Shots Hit Robots 453 | 2 54 13 93 14 . 35 7 81 154 Core Hits 253 | 1 26 8 38 8 . 19 4 52 97 Critical Kills 2 | . 1 . . . . . . 1 . Critical Parts Destroyed 2 | . . . . . . . . 1 1 Critical Strikes 10 | . 1 . . . . . . 2 7 Burn 5 | . . . . . . . . . 5 Meltdown 1 | . . . . . . . . 1 . Destroy 3 | . 1 . . . . . . 1 1 Sever 1 | . . . . . . . . . 1 Melee Attacks 29 | . . . . . . . . . 29 Impact . | . . . . . . . . . . Slashing 29 | . . . . . . . . . 29 Piercing . | . . . . . . . . . . Sneak Attacks 2 | . . . . . . . . . 2 Combat Hostiles . | . . . . . . . . . . Follow-up Attacks . | . . . . . . . . . . Damage Inflicted 9098 | 25 726 200 1783 310 . 630 169 2039 3216 Guns 5663 | 25 726 136 712 144 . 304 44 1082 2490 Cannons 2446 | . . 64 1065 166 . 326 125 700 . Explosions 257 | . . . . . . . . 257 . Melee 726 | . . . . . . . . . 726 Ramming 6 | . . . 6 . . . . . . Kinetic 4018 | 25 726 136 712 144 . 304 44 819 1108 Thermal 4091 | . . 64 1065 166 . 326 125 963 1382 Explosive 257 | . . . . . . . . 257 . Electromagnetic . | . . . . . . . . . . Impact . | . . . . . . . . . . Slashing 726 | . . . . . . . . . 726 Piercing . | . . . . . . . . . . Highest Corruption . | . . . . . . . . . . Average Corruption . | . . . . . . . . . . Corruption Purged . | . . . . . . . . . . Corruption Blocked . | . . . . . . . . . . Overload Shots . | . . . . . . . . . . Overflow Damage 42 | . . . . . . . . 1 41 Projectiles 1 | . . . . . . . . 1 . Explosions . | . . . . . . . . . . Melee 41 | . . . . . . . . . 41 Knockbacks . | . . . . . . . . . . Impact . | . . . . . . . . . . Kinetic . | . . . . . . . . . . Secondary . | . . . . . . . . . . Self-Inflicted Damage . | . . . . . . . . . . Shots . | . . . . . . . . . . Rammed 1 | . . . 1 . . . . . . Targets Rammed 2 | . . . 2 . . . . . . Kicked . | . . . . . . . . . . Crushed 1 | . . . 1 . . . . . . Highest Temperature 340 | . 28 153 258 21 . 63 5 45 340 Average Temperature 84 | . 6 51 87 15 . 46 3 10 133 Received Heat Transfer 2382 | . 267 87 291 69 . 90 45 552 981 Effects 4 | . . . 1 . . . . . 3 Interference 4 | . . . 1 . . . . . 3 Siege Activations . | . . . . . . . . . . Robots Corrupted . | . . . . . . . . . . Combat Hostiles . | . . . . . . . . . . Parts Fried . | . . . . . . . . . . Impact Corruptions . | . . . . . . . . . . Robots Melted 2 | . . . . . . . . 1 1 Combat Hostiles 2 | . . . . . . . . 1 1 Parts Melted 15 | . . 2 4 . . 2 . 3 4 Heat Transferred 6754 | . . 111 1850 296 . 592 185 1272 2448 Parts Sabotaged . | . . . . . . . . . . Parts Stolen . | . . . . . . . . . . Parts Stripped . | . . . . . . . . . . Power Chain Reactions . | . . . . . . . . . . Alert | -11 -10 -10 -9 -9 -9 -8 -8 -8 -8 ------- Run | Yrd Mat Min Mat Min Exi Min Mat Gar Mat Peak Influence 840 | 5 195 76 523 297 . 245 173 840 731 Initial 409 | . 3 46 . 165 . . . 2 409 Average 226 | 4 85 23 309 105 . 77 102 437 576 Maximum Alert Level 3 | . . . 2 1 . 1 . 3 3 Low Security (%) 59 | 100 100 100 22 73 . 92 100 21 . Level 1 12 | . . . 42 26 . 7 . 11 . Level 2 23 | . . . 35 . . . . 47 92 Level 3 4 | . . . . . . . . 20 7 Level 4 . | . . . . . . . . . . Level 5 . | . . . . . . . . . . High Security . | . . . . . . . . . . Max Security . | . . . . . . . . . . Squads Dispatched 9 | . 1 . 4 . . . . . 4 Investigation 2 | . . . 1 . . . . . 1 Extermination . | . . . . . . . . . . Reinforcement 4 | . 1 . 2 . . . . . 1 Assault 3 | . . . 1 . . . . . 2 Garrison . | . . . . . . . . . . Intercept . | . . . . . . . . . . Searches Triggered . | . . . . . . . . . . Construction Impeded . | . . . . . . . . . . Haulers Reinforced . | . . . . . . . . . . Active Scanning Responses . | . . . . . . . . . . Cargo Convoy Interrupts . | . . . . . . . . . . Stealth | -11 -10 -10 -9 -9 -9 -8 -8 -8 -8 --------- Run | Yrd Mat Min Mat Min Exi Min Mat Gar Mat Distress Signals 8 | . 2 . . 2 . . . . 4 Communications Jammed . | . . . . . . . . . . Distress Signals . | . . . . . . . . . . Times Spotted 152 | . 19 4 41 10 . 11 4 25 38 Peak Tracking Total 5 | . 5 2 5 3 . 4 1 4 5 Tactical Retreats 6 | . . . 4 . . . . 2 . Traps | -11 -10 -10 -9 -9 -9 -8 -8 -8 -8 ------- Run | Yrd Mat Min Mat Min Exi Min Mat Gar Mat Traps Triggered 7 | . . . 1 . . . . 6 . Indirectly . | . . . . . . . . . . Trap Hack Attempts . | . . . . . . . . . . Triggered . | . . . . . . . . . . Disarmed . | . . . . . . . . . . Reprogrammed . | . . . . . . . . . . Reused . | . . . . . . . . . . Traps Extracted . | . . . . . . . . . . Installed . | . . . . . . . . . . Triggered . | . . . . . . . . . . Machines | -11 -10 -10 -9 -9 -9 -8 -8 -8 -8 ---------- Run | Yrd Mat Min Mat Min Exi Min Mat Gar Mat Machines Disabled 13 | . . . . 1 . 2 1 8 1 Max in Single Turn 1 | . . . . 1 . 1 1 1 1 Garrison Relay 3 | . . . . . . . . 3 . Machines Repaired . | . . . . . . . . . . Machines Dismantled . | . . . . . . . . . . Machines Sabotaged . | . . . . . . . . . . Overloaded Fab Kills . | . . . . . . . . . . Hacking | -11 -10 -10 -9 -9 -9 -8 -8 -8 -8 --------- Run | Yrd Mat Min Mat Min Exi Min Mat Gar Mat Machines Accessed 27 | . 7 1 6 . . 1 4 4 4 Terminals 22 | . 6 . 5 . . 1 2 4 4 Fabricators . | . . . . . . . . . . Repair Stations 1 | . 1 . . . . . . . . Recycling Units . | . . . . . . . . . . Scanalyzers 2 | . . . 1 . . . 1 . . Garrison Access 1 | . . . . . . . 1 . . Total Hacks 61 | . 17 1 19 . . 2 6 5 11 Successful 37 | . 14 1 12 . . . 1 3 6 Failed 23 | . 2 . 7 . . 2 5 2 5 Catastrophic 5 | . 1 . . . . 1 1 1 1 Database Lockouts 1 | . 1 . . . . . . . . Manual 44 | . 11 . 16 . . 2 4 . 11 Terminals 50 | . 13 . 15 . . 2 4 5 11 Fabricators . | . . . . . . . . . . Repair Stations 4 | . 4 . . . . . . . . Recycling Units . | . . . . . . . . . . Scanalyzers 5 | . . . 4 . . . 1 . . Garrison Access 1 | . . . . . . . 1 . . Terminal Hacks 12 | . 3 1 4 . . . . 3 1 Part Schematic 1 | . . . 1 . . . . . . Robot Analysis 1 | . 1 . . . . . . . . Open Door 2 | . . 1 . . . . . 1 . Branch Access Points 1 | . . . 1 . . . . . . Emergency Access Points 1 | . . . . . . . . 1 . Terminal Index 2 | . 1 . . . . . . . 1 Locate Traps 1 | . . . 1 . . . . . . Hauler Manifests 2 | . 1 . 1 . . . . . . Garrison Registry 1 | . . . . . . . . 1 . Fabricator Hacks . | . . . . . . . . . . Repair Station Hacks 4 | . 4 . . . . . . . . Scan Component 2 | . 2 . . . . . . . . Repair 2 | . 2 . . . . . . . . Recycling Unit Hacks . | . . . . . . . . . . Scanalyzer 4 | . . . 4 . . . . . . Insert Component 3 | . . . 3 . . . . . . Analyze 1 | . . . 1 . . . . . . Garrison Access Hacks 1 | . . . . . . . 1 . . Unlock Access 1 | . . . . . . . 1 . . Unauthorized Hacks 16 | . 7 . 4 . . . . . 5 Terminals 16 | . 7 . 4 . . . . . 5 Assimilate 3 | . 2 . . . . . . . 1 Botnet 10 | . 4 . 3 . . . . . 3 Operators 3 | . 1 . 1 . . . . . 1 Fabricators . | . . . . . . . . . . Repair Stations . | . . . . . . . . . . Recycling Units . | . . . . . . . . . . Scanalyzers . | . . . . . . . . . . Garrison Access . | . . . . . . . . . . Data Cores Recovered . | . . . . . . . . . . Used . | . . . . . . . . . . Hacking Detections 19 | . 4 . 5 . . 1 3 2 4 Full Trace Events 1 | . . . . . . . . . 1 Feedback Events . | . . . . . . . . . . Feedback Blocked . | . . . . . . . . . . Robot Schematics Acquired . | . . . . . . . . . . Robots Built . | . . . . . . . . . . Authchips . | . . . . . . . . . . Time . | . . . . . . . . . . Total Robot Build Rating . | . . . . . . . . . . Part Schematics Acquired 2 | . . . 2 . . . . . . Parts Built . | . . . . . . . . . . Authchips . | . . . . . . . . . . Time . | . . . . . . . . . . Total Part Build Rating . | . . . . . . . . . . Parts Repaired 2 | . 2 . . . . . . . . Time 52 | . 52 . . . . . . . . Parts Recycled . | . . . . . . . . . . Recycled Matter . | . . . . . . . . . . Retrieved Matter . | . . . . . . . . . . Retrieved Components . | . . . . . . . . . . Parts Scanalyzed 1 | . . . 1 . . . . . . Part Schematics Acquired 1 | . . . 1 . . . . . . Parts Damaged . | . . . . . . . . . . Bothacking | -11 -10 -10 -9 -9 -9 -8 -8 -8 -8 ------------ Run | Yrd Mat Min Mat Min Exi Min Mat Gar Mat Used RIF Installer 1 | . . . . . . . . 1 . Robots Hacked . | . . . . . . . . . . Non-combat . | . . . . . . . . . . Combat . | . . . . . . . . . . Robot Hacks Applied . | . . . . . . . . . . Relay Couplers Released 12 | . . . . . . . . 12 . Machine Destruction 12 | . . . . . . . . 12 . Fabnet Peak Effective % . | . . . . . . . . . . Robots Rewired 2 | . . . . . . . . 2 . Allies Hacked . | . . . . . . . . . . Hacks Repelled . | . . . . . . . . . . Allies | -11 -10 -10 -9 -9 -9 -8 -8 -8 -8 -------- Run | Yrd Mat Min Mat Min Exi Min Mat Gar Mat Total Allies 10 | . 1 3 . 3 . . . 2 1 Largest Group 4 | . 1 4 1 2 1 . . 2 1 Highest-Rated Group 56 | . 10 50 10 50 31 . . 56 10 Highest-Rated Ally 31 | . 10 16 10 31 31 . . 31 10 Total Orders . | . . . . . . . . . . Ally Attacks 41 | . . 8 . 29 . . . 4 . Total Damage 549 | . . 103 . 403 . . . 43 . Kills 5 | . . . . 4 . . . 1 . Allies Corrupted . | . . . . . . . . . . Allies Melted . | . . . . . . . . . . Intel | -11 -10 -10 -9 -9 -9 -8 -8 -8 -8 ------- Run | Yrd Mat Min Mat Min Exi Min Mat Gar Mat Robot Analysis Total 1 | . 1 . . . . . . . . Derelict Logs Recovered 2 | . . 1 . 1 . . . . . Drone Launches . | . . . . . . . . . . Drone Recoveries . | . . . . . . . . . . Exploration | -11 -10 -10 -9 -9 -9 -8 -8 -8 -8 ------------- Run | Yrd Mat Min Mat Min Exi Min Mat Gar Mat Turns Passed 9793 | 26 1196 1515 1234 1319 450 917 413 1641 1082 Spaces Moved 4272 | 13 588 650 563 469 85 336 226 883 459 Core . | . . . . . . . . . . Treads 3383 | 13 588 650 563 469 85 336 226 453 . Legs . | . . . . . . . . . . Wheels 889 | . . . . . . . . 430 459 Hover . | . . . . . . . . . . Flight . | . . . . . . . . . . Fastest Speed 90 | 160 160 160 160 160 240 160 160 100 90 Average Speed 176 | 160 160 224 160 235 240 239 160 143 104 Slowest Speed 240 | 160 160 240 160 240 240 240 160 240 135 Overloaded Moves . | . . . . . . . . . . Propulsion Burnouts . | . . . . . . . . . . Robots Hopped . | . . . . . . . . . . Cave-ins Triggered . | . . . . . . . . . . Exploration Rate (%) 55 | 2 89 98 51 98 15 55 23 77 48 Regions Visited 9 Branch Regions 4 Pre-discovered Areas 1 | . . 1 . . . . . . . Known Exits Taken 6 | . . 1 1 1 1 1 1 . . Unknown Exits Taken 2 | 1 1 . . . . . . . . Scrap Searched 4 | . . 1 . 2 . 1 . . . Spaces Dug . | . . . . . . . . . . Terrain Destroyed 6 | . . . . . . 1 . 5 . Melee . | . . . . . . . . . . Projectile 2 | . . . . . . 1 . 1 . AOE 4 | . . . . . . . . 4 . Terrain Rammed . | . . . . . . . . . . Walls Destroyed . | . . . . . . . . . . Machines Disabled . | . . . . . . . . . . Actions | -11 -10 -10 -9 -9 -9 -8 -8 -8 -8 --------- Run | Yrd Mat Min Mat Min Exi Min Mat Gar Mat Total 5841 | 15 763 686 760 657 332 389 267 1113 859 Wait 961 | . 101 16 93 162 248 16 21 64 240 Move 4264 | 12 587 649 562 468 84 335 226 882 459 Hop . | . . . . . . . . . . Pick Up 55 | . 17 3 7 3 . . 2 17 6 Fast Attach 26 | . 3 1 2 . . 3 . 5 12 Attach 24 | . 1 3 5 . . 1 2 6 6 Detach 11 | . 1 2 1 . . 2 . 2 3 Swap 29 | 2 1 1 8 3 . . 4 7 3 Drop 54 | . 10 2 11 5 . 2 6 13 5 Fire 349 | 1 42 9 69 16 . 30 6 80 96 Melee 29 | . . . . . . . . . 29 Ram . | . . . . . . . . . . Kick . | . . . . . . . . . . Crush 2 | . . . 2 . . . . . . Escape Stasis 16 | . . . . . . . . 16 . Rewire 21 | . . . . . . . . 21 . Trap . | . . . . . . . . . . Miscellaneous . | . . . . . . . . . . Route ------- -11/Scrapyard -10/Materials (discovered 4 exits: *Mat x2 / *Min x2) -10/Mines (discovered 3 exits: *Mat x2 / *Sub) -9/Materials -9/Mines (discovered 3 exits: *Mat x2 / *Exi) -9/Exiles -8/Mines (discovered 2 exits: *Mat x2) -8/Materials -8/Garrison (discovered 3 exits: *Mat x3) -8/Materials History --------- Turn | Location | Event 8 | -11/Scrapyard | Discovered new exit (range 3) 27 | -11/Scrapyard | Entered Materials 202 | -10/Materials | Discovered new exit (range 8) 314 | -10/Materials | Build established: Mutant 490 | -10/Materials | Discovered new exit (range 10) 573 | -10/Materials | Discovered new exit (range 10) 992 | -10/Materials | Central database locked down 1067 | -10/Materials | Repaired Lgt. Armor Plating 1095 | -10/Materials | Repaired Assault Rifle 1181 | -10/Materials | Discovered new exit (range 15) 1223 | -10/Materials | Entered Mines 1223 | -10/Mines | Accompanied by 1 ally 1224 | -10/Mines | Met a Derelict bent on vengeance 1354 | -10/Mines | Found the Drone Emporium 1361 | -10/Mines | Found Prototype Device 1468 | -10/Mines | Discovered new exit (range 4) 1554 | -10/Mines | Discovered new exit (range 6) 1700 | -10/Mines | Assisted by bots powering up and referring to "LRC-V3" 1806 | -10/Mines | Lost 3 allies 1978 | -10/Mines | Discovered new exit (range 6) 2111 | -10/Mines | Found a damaged Exp. Sensor Array with a note attached 2116 | -10/Mines | Found Prototype Device 2272 | -10/Mines | Learned location of Storage (-7) 2523 | -10/Mines | Identified exit to Subcaves 2669 | -10/Mines | Identified exit to Materials 2738 | -10/Mines | Entered Materials 2738 | -9/Materials | Accompanied by 1 ally 2738 | -9/Materials | Evolved 2 slots: Utility x2 2776 | -9/Materials | Identified Exp. Sensor Array 2776 | -9/Materials | Identified Splice Drone Bay 3156 | -9/Materials | Build established: Scavenger-Mutant 3638 | -9/Materials | Discovered new exit (range 12) 3682 | -9/Materials | Identified exit to Mines 3938 | -9/Materials | First assault squad dispatched 3972 | -9/Materials | Entered Mines 4025 | -9/Mines | Escorted by a lone wolf Derelict 4246 | -9/Mines | Assembled infested the area 4264 | -9/Mines | A weapon hastily lodged in a ceiling crevice suddenly fell to the ground 4671 | -9/Mines | Discovered new exit (range 15) 4701 | -9/Mines | Joined a pair of Derelicts in attacking an 0b10 outpost 4747 | -9/Mines | Identified exit to Materials 4859 | -9/Mines | Deemed a non-threat by the Exiles lab entrance 4862 | -9/Mines | Discovered new exit (range 5) 4869 | -9/Mines | Identified exit to Exiles 4907 | -9/Mines | Discovered exit to Materials (range 14) 4963 | -9/Mines | Learned Materials security intel 5291 | -9/Mines | Entered Exiles 5291 | -9/Exiles | Accompanied by 1 ally 5327 | -9/Exiles | Discovered new exit (range 14) 5378 | -9/Exiles | Met 8R-AWN 5739 | -9/Exiles | Identified exit to Mines 5741 | -9/Exiles | Entered Mines 6037 | -8/Mines | Core integrity fell below 50% 6479 | -8/Mines | Discovered exit to Materials (range 11) 6629 | -8/Mines | Discovered exit to Materials (range 11) 6658 | -8/Mines | Entered Materials 6658 | -8/Materials | Evolved 2 slots: Propulsion x1, Utility x1 7071 | -8/Materials | Identified exit to Garrison 7071 | -8/Materials | Entered Garrison 7105 | -8/Garrison | Triggered checkpoint 7320 | -8/Garrison | Triggered checkpoint 7348 | -8/Garrison | Triggered checkpoint 7393 | -8/Garrison | Triggered checkpoint 7404 | -8/Garrison | Triggered checkpoint 7569 | -8/Garrison | Triggered checkpoint 7755 | -8/Garrison | Lost 4 parts (1n2u1w) 7918 | -8/Garrison | Spotted B-75 Beast 8065 | -8/Garrison | Discovered new exit (range 13) 8065 | -8/Garrison | Discovered new exit (range 67) 8065 | -8/Garrison | Discovered new exit (range 50) 8256 | -8/Garrison | Triggered checkpoint 8352 | -8/Garrison | Installed Relay Interface Framework 8383 | -8/Garrison | Garrison Relay disabled 8511 | -8/Garrison | Garrison Relay disabled 8615 | -8/Garrison | Garrison Relay disabled 8711 | -8/Garrison | Identified exit to Materials 8712 | -8/Garrison | Entered Materials 9112 | -8/Materials | First assault squad dispatched 9216 | -8/Materials | Core integrity fell below 50% 9254 | -8/Materials | Lost 5 parts (1p2n1u1w) 9256 | -8/Materials | Destroyed 7 combat bots 9622 | -8/Materials | Core integrity fell below 20% 9661 | -8/Materials | Lost 4 parts (1p1n1u1w) 9794 | -8/Materials | Destroyed by Y-45 Defender with Heavy Assault Rifle Last Messages --------------- 09648_ K-01 Serf collects debris. 09671_ R-06 Scavenger collects Adv. Heat Sink. 09673_ R-06 Scavenger collects Rnf. Ion Engine. 09708_ Imp. Light Armor Plating severed. 09710_ Acquired Imp. Light Armor Plating. 09712_ L-31 Rogue destroyed. 09713_ Technician 3a reports 0b10 security level has risen to 3. 09717_ G-47 Trooper destroyed. 09719_ Acquired 10 matter. 09726_ Dropped Lgt. Nuclear Core. 09731_ Sneak attack on M-28 Smith. 09731_ Destroyed Lgt. Deuterium Engine. 09731_ M-28 Smith destroyed. 09747_ Sneak attack on A-02 Transporter. 09751_ Technician 3a reveals location of hidden door. 09770_ Critical hit (Burn: +37). 09776_ Critical hit (Destroy). 09783_ Y-45 Defender Imp. Ion Engine severed. Map ----- +----------------------------------------------------+ | | | | | | | | | | | | | | | | | | | | | | | | | | | | | | | | | ?????????????????########????????????????????????? | | ?????????????????# #????????????????????????? | | ?????????????????# #????????????????????????? | | ?????????????????# ! #???????################## | | ????????????###### #???????# # [ | | ????????????+ + #???????# """ # """ | | ????????????###### #####???# ! """ # """"" | | ?????????????????#####+## #???# """ # """"" | | ???????????????????# #???# # """"" | | ???????????????????# ####@* #???# "" # """ | | ???????????????????# ???##Y##???# """# | | ???????????????????#?????#%#????# S"# | | ?????????????????????????#=#????# # | | ?????????????????????????#[#????#####+########+### | | ???????????????????#######[#??###### | | ???????????????????+ ==!=#??# | | ???????????????????## ####*#??# #### | | ?????????????????????????#=#??# #??############## | | ?????????????????????????#*#??# #???????????????# | | ?????????????????????????#/#### #????????????#### | | ?????????????????????????#=%*!= #???########## ## | | ?????????????????????????########???# = # | | ????????????????????????????????????#^ | # | | ????????????????????????????????????#^== +% | | ????????????????????????????????????#^=! #% | | ????????????????????????????????????# ^! # | | ????????????????????????????????????# = ^ ^?# | | ????????????????????????????????????# ?# | | ????????????????????????????????############+#??# | | ????????????????????????????????# ! ## #### | | ????????????????????????????????# # | | ????????????????????????????????# """ + | | ????????????????????????????????# """ # | | ????????????????????????????????#" """ # #### | +----------------------------------------------------+ Best States ------------- Heat Dissipation 50 Energy Generation 18 Energy Capacity 265 Matter Stores 300 Matter Capacity 300 Sight Range 20 Robot Scan Range 20 Terrain Scan Density 10 Armor Coverage 300 Evasion (%) 42 Targeting Accuracy 8 Recoil Reduction 3 Item Schematics ----------------- Arm. Wheel | -9/Materials | Scanalyzed Hcp. Storage Unit | -9/Materials | Hacked Robot Schematics ------------------ None Fabricated ------------ Nothing Alien Tech Used ----------------- None Achievements -------------- None Challenges ------------ None Game ------ Seed GaussSurgeWheel Manual? 0 Play Time 01:11:01 Cumulative 81.3 hours Start 2024.05.22 @ 16:14:28 End 2024.05.22 @ 22:03:12 Sessions 3 Manual Loads 0 Difficulty Rogue Special Mode None Game No. 52 Rogue 49 Adventurer 0 Explorer 3 Win Type - Total 1 Types 1/0/0/0/0/0/0/0/0 Lore% 40 Gallery% 37 Achievement% 40 Wizard Run 0 Options --------- Layout 1 ASCII 0 Keyboard 1 Movement Numpad Keybinds 1 Fullscreen 1 Font 24/Smallcaps Map View 50x35 Zoom Use 0% Tactical HUD 1 Map Filters NONE Filters NONE Steam 1 RUN: 69bc698f-c141-4794-9a99-2e62de09f0ce